Department Family,Entity,Date Paid,Expense Type,Expense Area,Supplier,Transaction Number,Amount (�),Supplier VAT Registration Number
BEIS,Met Office,2022-04-01,11 SERVICES,MARKETS,Bray Leino Ltd,466577,29850,135605525
BEIS,Met Office,2022-04-01,11 SERVICES,MARKETS,Bray Leino Ltd,466577,600,135605525
BEIS,Met Office,2022-04-01,11 SERVICES,CHIEF FINANCIAL OFFICER,LEASEDRIVE RENTAL MANAGEMENT LTD,466558,840.48,733546040
BEIS,Met Office,2022-04-01,06 ACCOMMODATION,CHIEF FINANCIAL OFFICER,NEOS NETWORKS LTD,466579,2400,553769603
BEIS,Met Office,2022-04-01,07 EQUIPMENT,PROGRAMMES,PRECISION WATERJET LTD,465241,15,879979318
BEIS,Met Office,2022-04-01,07 EQUIPMENT,PROGRAMMES,PRECISION WATERJET LTD,465241,115.25,879979318
BEIS,Met Office,2022-04-01,07 EQUIPMENT,PROGRAMMES,PRECISION WATERJET LTD,465241,124.75,879979318
BEIS,Met Office,2022-04-01,06 ACCOMMODATION,CHIEF FINANCIAL OFFICER,SHARED ACCESS LTD,466326,860,920672730
BEIS,Met Office,2022-04-01,06 ACCOMMODATION,CHIEF FINANCIAL OFFICER,TOP RANK CLEANING SERVICES LTD,466606,914,-
BEIS,Met Office,2022-04-01,11 SERVICES,TECHNOLOGY AND CIO,TRAINING 4 RESILIENCE LLP,465877,3500,112 3323 73
BEIS,Met Office,2022-04-01,11 SERVICES,TECHNOLOGY AND CIO,TRAINING 4 RESILIENCE LLP,465877,9600,112 3323 73
BEIS,Met Office,2022-04-01,11 SERVICES,PROGRAMMES,University College London,466376,61848.57,524371168
BEIS,Met Office,2022-04-01,11 SERVICES,PROGRAMMES,University Of Leeds,465524,149662.6,613451470
BEIS,Met Office,2022-04-01,11 SERVICES,PROGRAMMES,University Of Leeds,465986,70702.18,613451470
BEIS,Met Office,2022-04-01,11 SERVICES,PROGRAMMES,University Of Leeds,466489,4297.82,613451470
BEIS,Met Office,2022-04-01,11 SERVICES,PROGRAMMES,University Of Reading,465866,49975,200012659
BEIS,Met Office,2022-04-01,11 SERVICES,PROGRAMMES,University Of Reading,465866,19934,200012659
BEIS,Met Office,2022-04-01,11 SERVICES,PROGRAMMES,University Of Reading,466262,49737,200012659
BEIS,Met Office,2022-04-01,11 SERVICES,PROGRAMMES,University Of Reading,466262,29553,200012659
BEIS,Met Office,2022-04-01,11 SERVICES,PROGRAMMES,University Of Reading,466561,30998,200012659
BEIS,Met Office,2022-04-01,11 SERVICES,PROGRAMMES,University Of Reading,466562,56499.42,200012659
BEIS,Met Office,2022-04-01,11 SERVICES,PROGRAMMES,University Of Reading,466563,85931,200012659
BEIS,Met Office,2022-04-04,11 SERVICES,PEOPLE,ACTIVE LEARNING TEAM LTD,466701,4200,-
BEIS,Met Office,2022-04-04,11 SERVICES,PROGRAMMES,CAMBRIDGE ENVIRONMENTAL RESEARCH CONSULTANTS,466707,27773,GB424750755
BEIS,Met Office,2022-04-04,11 SERVICES,PROGRAMMES,CAMBRIDGE ENVIRONMENTAL RESEARCH CONSULTANTS,466707,49850,GB424750755
BEIS,Met Office,2022-04-04,11 SERVICES,PROGRAMMES,CAMBRIDGE ENVIRONMENTAL RESEARCH CONSULTANTS,466707,25350,GB424750755
BEIS,Met Office,2022-04-04,07 EQUIPMENT,PROGRAMMES,CAMTEC ENGINEERING LTD,466573,20,527033861
BEIS,Met Office,2022-04-04,07 EQUIPMENT,PROGRAMMES,CAMTEC ENGINEERING LTD,466573,136,527033861
BEIS,Met Office,2022-04-04,07 EQUIPMENT,PROGRAMMES,CAMTEC ENGINEERING LTD,466573,104,527033861
BEIS,Met Office,2022-04-04,13 MISCELLANEOUS,CHIEF FINANCIAL OFFICER,CANON UK LTD,466705,1643.39,523797128
BEIS,Met Office,2022-04-04,13 MISCELLANEOUS,CHIEF FINANCIAL OFFICER,CANON UK LTD,466706,548.34,523797128
BEIS,Met Office,2022-04-04,13 MISCELLANEOUS,CHIEF FINANCIAL OFFICER,CANON UK LTD,466706,1.78,523797128
BEIS,Met Office,2022-04-04,13 MISCELLANEOUS,CHIEF FINANCIAL OFFICER,CANON UK LTD,466706,4.16,523797128
BEIS,Met Office,2022-04-04,13 MISCELLANEOUS,CHIEF FINANCIAL OFFICER,CANON UK LTD,466706,5.38,523797128
BEIS,Met Office,2022-04-04,13 MISCELLANEOUS,CHIEF FINANCIAL OFFICER,CANON UK LTD,466706,10.9,523797128
BEIS,Met Office,2022-04-04,13 MISCELLANEOUS,CHIEF FINANCIAL OFFICER,CANON UK LTD,466706,17.27,523797128
BEIS,Met Office,2022-04-04,13 MISCELLANEOUS,CHIEF FINANCIAL OFFICER,CANON UK LTD,466706,13.74,523797128
BEIS,Met Office,2022-04-04,13 MISCELLANEOUS,CHIEF FINANCIAL OFFICER,CANON UK LTD,466706,7.26,523797128
BEIS,Met Office,2022-04-04,03 STAFF COSTS T&S,PROGRAMMES,CHARLIE'S TRAVEL LTD,466672,271.46,783848277
BEIS,Met Office,2022-04-04,07 EQUIPMENT,CHIEF FINANCIAL OFFICER,COMPUTACENTER (UK) LTD,466596,6686.4,490334648
BEIS,Met Office,2022-04-04,INFORMATION TECHNOLOGY,TECHNOLOGY AND CIO,COMPUTACENTER (UK) LTD,466696,160838,490334648
BEIS,Met Office,2022-04-04,INFORMATION TECHNOLOGY,TECHNOLOGY AND CIO,COMPUTACENTER (UK) LTD,466697,59645.73,490334648
BEIS,Met Office,2022-04-04,11 SERVICES,MARKETS,DESIGNAMITE LTD,466694,560,817819989
BEIS,Met Office,2022-04-04,11 SERVICES,PROGRAMMES,FCDO,466599,4599.08,888813560
BEIS,Met Office,2022-04-04,STOCK,SERVICES,GH ZEAL LTD,465715,17.5,648929087
BEIS,Met Office,2022-04-04,TRADE CREDITORS,SERVICES,GH ZEAL LTD,465715,4964.05,648929087
BEIS,Met Office,2022-04-04,FIXTURE & FITTINGS,CHIEF FINANCIAL OFFICER,Health & Safety Executive,465812,23277.84,888810177
BEIS,Met Office,2022-04-04,13 MISCELLANEOUS,PEOPLE,HEALTH MANAGEMENT LTD,466487,4377.97,792250621
BEIS,Met Office,2022-04-04,10 EQUIPMENT MAINTENANCE,TECHNOLOGY AND CIO,Hewlett Packard Ltd,466669,86965.66,314149679
BEIS,Met Office,2022-04-04,10 EQUIPMENT MAINTENANCE,TECHNOLOGY AND CIO,Hewlett Packard Ltd,466669,145903.3,314149679
BEIS,Met Office,2022-04-04,10 EQUIPMENT MAINTENANCE,TECHNOLOGY AND CIO,Hewlett Packard Ltd,466669,500000,314149679
BEIS,Met Office,2022-04-04,10 EQUIPMENT MAINTENANCE,TECHNOLOGY AND CIO,Hewlett Packard Ltd,466669,305006.04,314149679
BEIS,Met Office,2022-04-04,10 EQUIPMENT MAINTENANCE,TECHNOLOGY AND CIO,Hewlett Packard Ltd,466669,291000,314149679
BEIS,Met Office,2022-04-04,11 SERVICES,PROGRAMMES,HOGAN LOVELLS INTERNATIONAL LLP,466666,33544.81,GB123371543
BEIS,Met Office,2022-04-04,11 SERVICES,PROGRAMMES,HOGAN LOVELLS INTERNATIONAL LLP,466668,15938.67,GB123371543
BEIS,Met Office,2022-04-04,11 SERVICES,PROGRAMMES,HOGAN LOVELLS INTERNATIONAL LLP,466670,647.62,GB123371543
BEIS,Met Office,2022-04-04,08 SOFTWARE LICENCES,TECHNOLOGY AND CIO,L3HARRIS GEOSPATIAL SOLUTIONS UK LTD,466381,75000,GB 7093026 51
BEIS,Met Office,2022-04-04,11 SERVICES,OFFICE OF THE CEO,MAZARS LLP,466590,44390,839835673
BEIS,Met Office,2022-04-04,12 INTERNATIONAL,MARKETS,MYACORN LTD,466695,100000,-
BEIS,Met Office,2022-04-04,13 MISCELLANEOUS,MARKETS,OASIS LOSS MODELLING FRAMEWORK LIMITED,466193,3768,139413611
BEIS,Met Office,2022-04-04,11 SERVICES,CHIEF FINANCIAL OFFICER,POSTURITE (UK) LTD,466565,186.84,583565114
BEIS,Met Office,2022-04-04,11 SERVICES,PROGRAMMES,ROWE IT LTD,466664,87487.5,924964394
BEIS,Met Office,2022-04-04,11 SERVICES,PROGRAMMES,ROWE IT LTD,466665,66152.5,924964394
BEIS,Met Office,2022-04-04,11 SERVICES,PROGRAMMES,ROWE IT LTD,466684,12007.08,924964394
BEIS,Met Office,2022-04-04,11 SERVICES,PROGRAMMES,ROWE IT LTD,466684,26015.34,924964394
BEIS,Met Office,2022-04-04,11 SERVICES,PROGRAMMES,ROWE IT LTD,466684,2668.23,924964394
BEIS,Met Office,2022-04-04,11 SERVICES,PROGRAMMES,ROWE IT LTD,466684,26015.34,924964394
BEIS,Met Office,2022-04-04,07 EQUIPMENT,SERVICES,Skyview Systems Ltd,466629,120,594519109
BEIS,Met Office,2022-04-04,07 EQUIPMENT,SERVICES,Skyview Systems Ltd,466629,35,594519109
BEIS,Met Office,2022-04-04,07 EQUIPMENT,SERVICES,Skyview Systems Ltd,466629,570,594519109
BEIS,Met Office,2022-04-04,07 EQUIPMENT,SERVICES,Skyview Systems Ltd,466629,855,594519109
BEIS,Met Office,2022-04-04,07 EQUIPMENT,SERVICES,Skyview Systems Ltd,466629,7695,594519109
BEIS,Met Office,2022-04-04,07 EQUIPMENT,SERVICES,Skyview Systems Ltd,466629,598.5,594519109
BEIS,Met Office,2022-04-04,06 ACCOMMODATION,CHIEF FINANCIAL OFFICER,SMAA DEVELOPMENTS LTD,465927,58.65,314 3660 27
BEIS,Met Office,2022-04-04,06 ACCOMMODATION,CHIEF FINANCIAL OFFICER,SMAA DEVELOPMENTS LTD,465928,117.66,314 3660 27
BEIS,Met Office,2022-04-04,06 ACCOMMODATION,CHIEF FINANCIAL OFFICER,SMAA DEVELOPMENTS LTD,465929,117.66,314 3660 27
BEIS,Met Office,2022-04-04,06 ACCOMMODATION,CHIEF FINANCIAL OFFICER,SMAA DEVELOPMENTS LTD,465930,352.98,314 3660 27
BEIS,Met Office,2022-04-04,06 ACCOMMODATION,CHIEF FINANCIAL OFFICER,SMAA DEVELOPMENTS LTD,465931,117.66,314 3660 27
BEIS,Met Office,2022-04-04,06 ACCOMMODATION,CHIEF FINANCIAL OFFICER,SMAA DEVELOPMENTS LTD,465932,3.92,314 3660 27
BEIS,Met Office,2022-04-04,06 ACCOMMODATION,CHIEF FINANCIAL OFFICER,SMAA DEVELOPMENTS LTD,465989,-352.98,314 3660 27
BEIS,Met Office,2022-04-04,11 SERVICES,TECHNOLOGY AND CIO,SOFTWAREONE,466598,9742.62,GB 942 5301 43
BEIS,Met Office,2022-04-04,08 SOFTWARE LICENCES,TECHNOLOGY AND CIO,SOFTWAREONE,466600,56013.6,GB 942 5301 43
BEIS,Met Office,2022-04-04,11 SERVICES,PROGRAMMES,University Of Cambridge,466688,75000,214222124
BEIS,Met Office,2022-04-04,11 SERVICES,PROGRAMMES,University Of Reading,464842,46644.33,200012659
BEIS,Met Office,2022-04-04,11 SERVICES,PROGRAMMES,University Of Reading,466501,68149.33,200012659
BEIS,Met Office,2022-04-04,11 SERVICES,MARKETS,WORLDPAY (UK) LTD,466575,47.26,991280207
BEIS,Met Office,2022-04-04,11 SERVICES,MARKETS,WORLDPAY (UK) LTD,466576,45.49,991280207
BEIS,Met Office,2022-04-05,11 SERVICES,PROGRAMMES,ALTO AEROSPACE LIMITED,466784,50836.5,275002528
BEIS,Met Office,2022-04-05,11 SERVICES,TECHNOLOGY AND CIO,BAE SYSTEMS APPLIED INTELLIGENCE LIMITED,462863,-40000,GB641407169
BEIS,Met Office,2022-04-05,11 SERVICES,TECHNOLOGY AND CIO,BAE SYSTEMS APPLIED INTELLIGENCE LIMITED,465454,2705,GB641407169
BEIS,Met Office,2022-04-05,11 SERVICES,TECHNOLOGY AND CIO,BAE SYSTEMS APPLIED INTELLIGENCE LIMITED,465612,12540,GB641407169
BEIS,Met Office,2022-04-05,11 SERVICES,TECHNOLOGY AND CIO,BAE SYSTEMS APPLIED INTELLIGENCE LIMITED,465616,8100,GB641407169
BEIS,Met Office,2022-04-05,11 SERVICES,TECHNOLOGY AND CIO,BAE SYSTEMS APPLIED INTELLIGENCE LIMITED,465619,18090,GB641407169
BEIS,Met Office,2022-04-05,11 SERVICES,TECHNOLOGY AND CIO,BAE SYSTEMS APPLIED INTELLIGENCE LIMITED,465621,2345,GB641407169
BEIS,Met Office,2022-04-05,11 SERVICES,TECHNOLOGY AND CIO,BAE SYSTEMS APPLIED INTELLIGENCE LIMITED,465625,13200,GB641407169
BEIS,Met Office,2022-04-05,11 SERVICES,TECHNOLOGY AND CIO,BAE SYSTEMS APPLIED INTELLIGENCE LIMITED,465631,14070,GB641407169
BEIS,Met Office,2022-04-05,11 SERVICES,TECHNOLOGY AND CIO,BAE SYSTEMS APPLIED INTELLIGENCE LIMITED,465634,660,GB641407169
BEIS,Met Office,2022-04-05,11 SERVICES,TECHNOLOGY AND CIO,BAE SYSTEMS APPLIED INTELLIGENCE LIMITED,466602,-2705,GB641407169
BEIS,Met Office,2022-04-05,13 MISCELLANEOUS,CHIEF FINANCIAL OFFICER,CANON UK LTD,466703,949.14,523797128
BEIS,Met Office,2022-04-05,13 MISCELLANEOUS,CHIEF FINANCIAL OFFICER,CANON UK LTD,466704,50.61,523797128
BEIS,Met Office,2022-04-05,13 MISCELLANEOUS,CHIEF FINANCIAL OFFICER,CARDIFF EXECUTIVE CENTRE LTD,466686,7.85,864497378
BEIS,Met Office,2022-04-05,06 ACCOMMODATION,CHIEF FINANCIAL OFFICER,D&G OFFICE SERVICES LTD,466717,292.5,272997547
BEIS,Met Office,2022-04-05,11 SERVICES,PEOPLE,EDENRED - CHILDCARE VOUCHERS,465330,-15,649 503 520
BEIS,Met Office,2022-04-05,11 SERVICES,PEOPLE,EDENRED - CHILDCARE VOUCHERS,466466,-30,649 503 520
BEIS,Met Office,2022-04-05,11 SERVICES,PEOPLE,EDENRED - CHILDCARE VOUCHERS,466749,12425,649 503 520
BEIS,Met Office,2022-04-05,11 SERVICES,TECHNOLOGY AND CIO,FLYFORM LTD,466734,9950,237333808
BEIS,Met Office,2022-04-05,11 SERVICES,SERVICES,FLYFORM LTD,466735,5472.5,237333808
BEIS,Met Office,2022-04-05,06 ACCOMMODATION,CHIEF FINANCIAL OFFICER,HIGHLANDS & ISLANDS AIRPORTS LTD.,466693,134.4,945667772
BEIS,Met Office,2022-04-05,08 SOFTWARE LICENCES,TECHNOLOGY AND CIO,HUT 6 SECURITY LIMITED,466721,29520,277 2052 03
BEIS,Met Office,2022-04-05,08 SOFTWARE LICENCES,TECHNOLOGY AND CIO,Ibm United Kingdom Ltd,466738,10587.7,107328000
BEIS,Met Office,2022-04-05,12 INTERNATIONAL,MARKETS,IDEMS INTERNATIONAL COMMUNITY INTEREST CO,466755,50000,-
BEIS,Met Office,2022-04-05,11 SERVICES,SERVICES,INMARSAT SOLUTIONS (CANADA) INC,466746,2308.03,766144223
BEIS,Met Office,2022-04-05,04 CONTRACTORS,PEOPLE,MATRIX SCM LIMITED,466551,304081.94,249 5734 68
BEIS,Met Office,2022-04-05,11 SERVICES,CHIEF FINANCIAL OFFICER,MITIE SECURITY LTD,466626,20588.08,416706654
BEIS,Met Office,2022-04-05,11 SERVICES,CHIEF FINANCIAL OFFICER,MITIE SECURITY LTD,466627,10294.23,416706654
BEIS,Met Office,2022-04-05,06 ACCOMMODATION,CHIEF FINANCIAL OFFICER,MORAY COUNCIL,466722,170.82,663755506
BEIS,Met Office,2022-04-05,11 SERVICES,MARKETS,Newcastle University,466294,2568,GB499672470
BEIS,Met Office,2022-04-05,11 SERVICES,SCIENCE,Plymouth Marine Laboratory,466736,15750,927105830
BEIS,Met Office,2022-04-05,11 SERVICES,PROGRAMMES,ROWE IT LTD,466685,128540,924964394
BEIS,Met Office,2022-04-05,11 SERVICES,SERVICES,SOFTWIRE TECHNOLOGY LIMITED,466754,4200,752 1253 57
BEIS,Met Office,2022-04-05,07 EQUIPMENT,MARKETS,SWANTECH LOGISTICS LTD,466571,24707.47,769332401
BEIS,Met Office,2022-04-05,11 SERVICES,TECHNOLOGY AND CIO,SYNTHESYS SYSTEMS ENGINEERS LTD,466726,1741.5,499309492
BEIS,Met Office,2022-04-05,11 SERVICES,PEOPLE,THE INSIGHTS FAMILY,465211,7800,289355550
BEIS,Met Office,2022-04-05,11 SERVICES,TECHNOLOGY AND CIO,UKCLOUD LTD,466731,1144.83,172647982
BEIS,Met Office,2022-04-05,11 SERVICES,PROGRAMMES,University of Edinburgh,463426,73994.9,592950700
BEIS,Met Office,2022-04-05,11 SERVICES,PROGRAMMES,University of Edinburgh,466687,-73994.9,592950700
BEIS,Met Office,2022-04-05,11 SERVICES,SCIENCE,University of Edinburgh,466702,23524.92,592950700
BEIS,Met Office,2022-04-05,13 MISCELLANEOUS,OTHER,University Of Exeter,466574,60,142047795
BEIS,Met Office,2022-04-05,11 SERVICES,CHIEF FINANCIAL OFFICER,REACTED PERSONAL DATA,466744,136,729159704
BEIS,Met Office,2022-04-06,06 ACCOMMODATION,CHIEF FINANCIAL OFFICER,ABOVE THE REST COMMERCIAL CLEANING LTD,466824,38,166969348
BEIS,Met Office,2022-04-06,11 SERVICES,MARKETS,ADOPSTAR,466750,1250,115036848
BEIS,Met Office,2022-04-06,11 SERVICES,TECHNOLOGY AND CIO,AMAZON WEB SERVICES INC.,10575,619.41,N/A
BEIS,Met Office,2022-04-06,11 SERVICES,TECHNOLOGY AND CIO,AMAZON WEB SERVICES INC.,10575,15034.27,N/A
BEIS,Met Office,2022-04-06,11 SERVICES,PEOPLE,BIRMINGHAM LIVING,466601,550,157898345
BEIS,Met Office,2022-04-06,08 SOFTWARE LICENCES,PEOPLE,CATALYST IT,466747,2075,978169262
BEIS,Met Office,2022-04-06,06 ACCOMMODATION,CHIEF FINANCIAL OFFICER,CBRE MANAGED SERVICES LTD,466795,9808.98,853936883
BEIS,Met Office,2022-04-06,06 ACCOMMODATION,CHIEF FINANCIAL OFFICER,CBRE MANAGED SERVICES LTD,466798,12546.74,853936883
BEIS,Met Office,2022-04-06,PLANT AND EQUIPMENT,CHIEF FINANCIAL OFFICER,CBRE MANAGED SERVICES LTD,466799,25206.52,853936883
BEIS,Met Office,2022-04-06,06 ACCOMMODATION,CHIEF FINANCIAL OFFICER,CBRE MANAGED SERVICES LTD,466800,12485.98,853936883
BEIS,Met Office,2022-04-06,06 ACCOMMODATION,CHIEF FINANCIAL OFFICER,CBRE MANAGED SERVICES LTD,466801,144085.3,853936883
BEIS,Met Office,2022-04-06,11 SERVICES,SERVICES,COLLECTE LOCALISATION SATELLITES (C.L.S.),23628,844.81,FR95338034390
BEIS,Met Office,2022-04-06,11 SERVICES,SERVICES,COLLECTE LOCALISATION SATELLITES (C.L.S.),23629,5374.08,FR95338034390
BEIS,Met Office,2022-04-06,11 SERVICES,SERVICES,COLLECTE LOCALISATION SATELLITES (C.L.S.),23650,6614.61,FR95338034390
BEIS,Met Office,2022-04-06,11 SERVICES,SERVICES,COLLECTE LOCALISATION SATELLITES (C.L.S.),23653,-6944,FR95338034390
BEIS,Met Office,2022-04-06,13 MISCELLANEOUS,CHIEF FINANCIAL OFFICER,DEMSTAR BUSINESS SOLUTIONS LTD,23609,92.51,10156145J
BEIS,Met Office,2022-04-06,11 SERVICES,MARKETS,ECMWF,23576,18218.02,NOTVATREG
BEIS,Met Office,2022-04-06,11 SERVICES,MARKETS,ECMWF,23577,422.44,NOTVATREG
BEIS,Met Office,2022-04-06,11 SERVICES,MARKETS,ECMWF,23578,8357.95,NOTVATREG
BEIS,Met Office,2022-04-06,11 SERVICES,MARKETS,ECMWF,23579,457.89,NOTVATREG
BEIS,Met Office,2022-04-06,11 SERVICES,MARKETS,ECMWF,23580,10119.17,NOTVATREG
BEIS,Met Office,2022-04-06,11 SERVICES,MARKETS,ECMWF,23581,3837.3,NOTVATREG
BEIS,Met Office,2022-04-06,11 SERVICES,MARKETS,ECMWF,23582,3837.31,NOTVATREG
BEIS,Met Office,2022-04-06,11 SERVICES,MARKETS,ECMWF,23583,283.18,NOTVATREG
BEIS,Met Office,2022-04-06,11 SERVICES,MARKETS,ECMWF,23584,2507.39,NOTVATREG
BEIS,Met Office,2022-04-06,11 SERVICES,MARKETS,ECMWF,23585,19259.04,NOTVATREG
BEIS,Met Office,2022-04-06,11 SERVICES,MARKETS,ECMWF,23586,12119.03,NOTVATREG
BEIS,Met Office,2022-04-06,11 SERVICES,MARKETS,ECMWF,23587,344.09,NOTVATREG
BEIS,Met Office,2022-04-06,11 SERVICES,MARKETS,ECMWF,23588,835.8,NOTVATREG
BEIS,Met Office,2022-04-06,11 SERVICES,MARKETS,ECMWF,23589,1671.59,NOTVATREG
BEIS,Met Office,2022-04-06,11 SERVICES,MARKETS,ECMWF,23590,4178.98,NOTVATREG
BEIS,Met Office,2022-04-06,11 SERVICES,MARKETS,ECMWF,23591,1671.59,NOTVATREG
BEIS,Met Office,2022-04-06,11 SERVICES,MARKETS,ECMWF,23592,417.9,NOTVATREG
BEIS,Met Office,2022-04-06,11 SERVICES,MARKETS,ECMWF,23593,2925.28,NOTVATREG
BEIS,Met Office,2022-04-06,11 SERVICES,MARKETS,ECMWF,23594,2089.49,NOTVATREG
BEIS,Met Office,2022-04-06,11 SERVICES,MARKETS,ECMWF,23595,831.25,NOTVATREG
BEIS,Met Office,2022-04-06,06 ACCOMMODATION,CHIEF FINANCIAL OFFICER,EDF ENERGY CUSTOMERS PLC,465268,-139712.71,523041202
BEIS,Met Office,2022-04-06,06 ACCOMMODATION,CHIEF FINANCIAL OFFICER,EDF ENERGY CUSTOMERS PLC,466751,139745.29,523041202
BEIS,Met Office,2022-04-06,06 ACCOMMODATION,CHIEF FINANCIAL OFFICER,EDF ENERGY CUSTOMERS PLC,466756,139745.29,523041202
BEIS,Met Office,2022-04-06,11 SERVICES,CHIEF FINANCIAL OFFICER,EDSON TIGER LTD,466725,5250,166910983
BEIS,Met Office,2022-04-06,03 STAFF COSTS T&S,CHIEF FINANCIAL OFFICER,ENTERPRISE RENT A CAR UK LTD,466793,77.31,215557314
BEIS,Met Office,2022-04-06,11 SERVICES,PROGRAMMES,Esri (Uk) Ltd,466753,6291.5,787430791
BEIS,Met Office,2022-04-06,11 SERVICES,MARKETS,"EUTELSAT MADERIA, UNIPESSOAL LDA",23572,433.37,PT511283733
BEIS,Met Office,2022-04-06,11 SERVICES,SERVICES,"EUTELSAT MADERIA, UNIPESSOAL LDA",23572,1733.49,PT511283733
BEIS,Met Office,2022-04-06,11 SERVICES,PROGRAMMES,FLYFORM LTD,466739,6750,237333808
BEIS,Met Office,2022-04-06,12 INTERNATIONAL,MARKETS,FOXSTONES TRAINING AND LEARNING,466802,2950,-
BEIS,Met Office,2022-04-06,08 SOFTWARE LICENCES,TECHNOLOGY AND CIO,GOOGLE IRELAND LTD,466737,46.81,6388047V
BEIS,Met Office,2022-04-06,06 ACCOMMODATION,MARKETS,HIGHLANDS & ISLANDS AIRPORTS LTD.,466825,300,945667772
BEIS,Met Office,2022-04-06,06 ACCOMMODATION,MARKETS,HIGHLANDS & ISLANDS AIRPORTS LTD.,466826,300,945667772
BEIS,Met Office,2022-04-06,11 SERVICES,CHIEF FINANCIAL OFFICER,MITIE SECURITY LTD,466742,1369.59,416706654
BEIS,Met Office,2022-04-06,11 SERVICES,CHIEF FINANCIAL OFFICER,MITIE SECURITY LTD,466743,891,416706654
BEIS,Met Office,2022-04-06,11 SERVICES,MARKETS,OVERSEAS DEVELOPMENT INSTITUTE SALES LTD,466689,7380,250 3150 54
BEIS,Met Office,2022-04-06,11 SERVICES,MARKETS,OVERSEAS DEVELOPMENT INSTITUTE SALES LTD,466690,11070,250 3150 54
BEIS,Met Office,2022-04-06,11 SERVICES,MARKETS,OVERSEAS DEVELOPMENT INSTITUTE SALES LTD,466691,11070,250 3150 54
BEIS,Met Office,2022-04-06,11 SERVICES,MARKETS,OVERSEAS DEVELOPMENT INSTITUTE SALES LTD,466692,11070,250 3150 54
BEIS,Met Office,2022-04-06,11 SERVICES,PEOPLE,PLURALSIGHT,10607,2006.41,EU826020045
BEIS,Met Office,2022-04-06,11 SERVICES,CHIEF FINANCIAL OFFICER,Reuters Ltd,466727,2160,397000555
BEIS,Met Office,2022-04-06,08 SOFTWARE LICENCES,TECHNOLOGY AND CIO,SECTIGO LTD,466718,10400,834875295
BEIS,Met Office,2022-04-06,11 SERVICES,TECHNOLOGY AND CIO,SSE CONTRACTING LTD,466720,10393.82,382894546
BEIS,Met Office,2022-04-06,07 EQUIPMENT,SERVICES,SWALE TECHNOLOGIES LTD,10600,521373.53,530846451
BEIS,Met Office,2022-04-06,07 EQUIPMENT,SERVICES,SWALE TECHNOLOGIES LTD,10601,165436.33,530846451
BEIS,Met Office,2022-04-06,06 ACCOMMODATION,CHIEF FINANCIAL OFFICER,TENNIE FACILITIES PROPERTY MANAGEMENT LTD,466752,207.15,982055803
BEIS,Met Office,2022-04-06,11 SERVICES,TECHNOLOGY AND CIO,TSG TRAINING LTD,466683,1530,GB 279 0047 91
BEIS,Met Office,2022-04-06,11 SERVICES,TECHNOLOGY AND CIO,TSG TRAINING LTD,466683,1350,GB 279 0047 91
BEIS,Met Office,2022-04-06,11 SERVICES,TECHNOLOGY AND CIO,TSG TRAINING LTD,466683,839,GB 279 0047 91
BEIS,Met Office,2022-04-06,11 SERVICES,MARKETS,ULTRA ELECTRONICS LTD NUCLEAR CONTROL SYSTEMS,466794,4926.81,123340754
BEIS,Met Office,2022-04-06,13 MISCELLANEOUS,SCIENCE,University Of East Anglia,466814,333.33,595183505
BEIS,Met Office,2022-04-06,07 EQUIPMENT,SERVICES,VAISALA LTD,23614,29236.11,336100011
BEIS,Met Office,2022-04-06,STOCK,SERVICES,VAISALA LTD,23615,0,336100011
BEIS,Met Office,2022-04-06,TRADE CREDITORS,SERVICES,VAISALA LTD,23615,8580.05,336100011
BEIS,Met Office,2022-04-06,11 SERVICES,PEOPLE,WEST MIDLANDS MAGAZINES LTD,466222,500,176 2004 28
BEIS,Met Office,2022-04-06,11 SERVICES,TECHNOLOGY AND CIO,WIREFAST LTD,466728,1821.38,749536001
BEIS,Met Office,2022-04-06,11 SERVICES,TECHNOLOGY AND CIO,WIREFAST LTD,466729,994.88,749536001
BEIS,Met Office,2022-04-07,13 MISCELLANEOUS,SCIENCE,AB MULTIMEDIA LTD,466810,375,849333502
BEIS,Met Office,2022-04-07,03 STAFF COSTS T&S,SERVICES,AIRPORT CAR RENTALS LTD,466921,320,-
BEIS,Met Office,2022-04-07,06 ACCOMMODATION,CHIEF FINANCIAL OFFICER,Belfast International Airport Ltd,466863,24170,617777601
BEIS,Met Office,2022-04-07,06 ACCOMMODATION,CHIEF FINANCIAL OFFICER,Biffa Waste Services Ltd,466867,453,537911627
BEIS,Met Office,2022-04-07,13 MISCELLANEOUS,SERVICES,Biffa Waste Services Ltd,466871,258.5,537911627
BEIS,Met Office,2022-04-07,11 SERVICES,SERVICES,Boc Ltd,466741,29007.92,226556555
BEIS,Met Office,2022-04-07,08 SOFTWARE LICENCES,PEOPLE,BOXXE,466906,5035,734245248
BEIS,Met Office,2022-04-07,STOCK,SERVICES,Campbell Scientific Ltd,466733,0,428453933
BEIS,Met Office,2022-04-07,TRADE CREDITORS,SERVICES,Campbell Scientific Ltd,466733,9441,428453933
BEIS,Met Office,2022-04-07,11 SERVICES,SERVICES,Campbell Scientific Ltd,466733,17,428453933
BEIS,Met Office,2022-04-07,06 ACCOMMODATION,CHIEF FINANCIAL OFFICER,CARDIFF EXECUTIVE CENTRE LTD,466671,2470,864497378
BEIS,Met Office,2022-04-07,11 SERVICES,CHIEF FINANCIAL OFFICER,CISTERMISER LTD,466872,2304,834842121
BEIS,Met Office,2022-04-07,INFORMATION TECHNOLOGY,SERVICES,DOT SOFTWARE LTD,466732,6804,701022805
BEIS,Met Office,2022-04-07,13 MISCELLANEOUS,CHIEF FINANCIAL OFFICER,EAST ANGLIAN WATER COOLER CO,466713,33.15,676668178
BEIS,Met Office,2022-04-07,11 SERVICES,CHIEF FINANCIAL OFFICER,EXPONENTIAL-E,466812,1919.5,GB798572653
BEIS,Met Office,2022-04-07,11 SERVICES,CHIEF FINANCIAL OFFICER,EXPONENTIAL-E,466813,4448.25,GB798572653
BEIS,Met Office,2022-04-07,11 SERVICES,PROGRAMMES,Frazer-Nash Consultancy Ltd,465614,20000,GB564103956
BEIS,Met Office,2022-04-07,11 SERVICES,PROGRAMMES,IAME LTD,466869,6750,140304468
BEIS,Met Office,2022-04-07,08 SOFTWARE LICENCES,TECHNOLOGY AND CIO,Ibm United Kingdom Ltd,466712,6292.52,107328000
BEIS,Met Office,2022-04-07,11 SERVICES,CHIEF FINANCIAL OFFICER,National Audit Office,466919,29333,417632457
BEIS,Met Office,2022-04-07,11 SERVICES,PEOPLE,SWANTECH LOGISTICS LTD,466745,900,769332401
BEIS,Met Office,2022-04-07,11 SERVICES,PROGRAMMES,University Of Exeter,466870,2640.83,142047795
BEIS,Met Office,2022-04-07,11 SERVICES,PROGRAMMES,University Of Exeter,466870,29505.27,142047795
BEIS,Met Office,2022-04-07,10 EQUIPMENT MAINTENANCE,SERVICES,YOUNG CALIBRATION LIMITED,466811,2000,673900720
BEIS,Met Office,2022-04-07,11 SERVICES,SERVICES,YOUNG CALIBRATION LIMITED,466811,15,673900720
BEIS,Met Office,2022-04-08,11 SERVICES,TECHNOLOGY AND CIO,AKAMAI TECHNOLOGIES LTD,466915,4921.08,745091237
BEIS,Met Office,2022-04-08,11 SERVICES,TECHNOLOGY AND CIO,AKAMAI TECHNOLOGIES LTD,466915,25836.95,745091237
BEIS,Met Office,2022-04-08,11 SERVICES,CHIEF FINANCIAL OFFICER,APPLE CENTRAL TAXIS,466920,1543.7,449238720
BEIS,Met Office,2022-04-08,13 MISCELLANEOUS,PEOPLE,BROADBEAN TECHNOLOGY LTD,466816,1634.59,GB184088778
BEIS,Met Office,2022-04-08,13 MISCELLANEOUS,PEOPLE,BROADBEAN TECHNOLOGY LTD,466817,1183.05,GB184088778
BEIS,Met Office,2022-04-08,13 MISCELLANEOUS,PEOPLE,BROADBEAN TECHNOLOGY LTD,466818,860.31,GB184088778
BEIS,Met Office,2022-04-08,13 MISCELLANEOUS,PEOPLE,BROADBEAN TECHNOLOGY LTD,466819,860.31,GB184088778
BEIS,Met Office,2022-04-08,13 MISCELLANEOUS,PEOPLE,BROADBEAN TECHNOLOGY LTD,466820,2227.6,GB184088778
BEIS,Met Office,2022-04-08,13 MISCELLANEOUS,PEOPLE,BROADBEAN TECHNOLOGY LTD,466821,1634.59,GB184088778
BEIS,Met Office,2022-04-08,03 STAFF COSTS T&S,CHIEF FINANCIAL OFFICER,ENTERPRISE RENT A CAR UK LTD,466451,2941.55,215557314
BEIS,Met Office,2022-04-08,03 STAFF COSTS T&S,CHIEF FINANCIAL OFFICER,ENTERPRISE RENT A CAR UK LTD,466941,1808.67,215557314
BEIS,Met Office,2022-04-08,11 SERVICES,PEOPLE,FRANCIS CLARK LLP,466912,1250,855910212
BEIS,Met Office,2022-04-08,11 SERVICES,PEOPLE,HEALTH ASSURED LIMITED,466815,1120,927 5242 17
BEIS,Met Office,2022-04-08,11 SERVICES,CHIEF FINANCIAL OFFICER,POSTURITE (UK) LTD,466803,88.94,583565114
BEIS,Met Office,2022-04-08,11 SERVICES,PROGRAMMES,ROWE IT LTD,466663,17250,924964394
BEIS,Met Office,2022-04-08,11 SERVICES,MARKETS,SPOKE (INTERACTIVE) LTD,466909,700,840156451
BEIS,Met Office,2022-04-08,11 SERVICES,PROGRAMMES,University Of Birmingham,466949,195969.66,729856187
BEIS,Met Office,2022-04-08,06 ACCOMMODATION,CHIEF FINANCIAL OFFICER,V & M MORRIS AND SON,466954,804.9,-
BEIS,Met Office,2022-04-08,06 ACCOMMODATION,CHIEF FINANCIAL OFFICER,Welsh Government,466952,750,GD 8888 350 56
BEIS,Met Office,2022-04-08,11 SERVICES,CHIEF FINANCIAL OFFICER,WILDLIFE TRUSTS,466918,1101,694 4739 81
BEIS,Met Office,2022-04-08,05 CONSULTANTS,CHIEF FINANCIAL OFFICER,WT CONSULTANCY (SW) LTD,466796,4900,223 4662 25
BEIS,Met Office,2022-04-08,10 EQUIPMENT MAINTENANCE,SERVICES,YOUNG CALIBRATION LIMITED,466913,3450,673900720
BEIS,Met Office,2022-04-08,11 SERVICES,SERVICES,YOUNG CALIBRATION LIMITED,466913,15,673900720
BEIS,Met Office,2022-04-11,13 MISCELLANEOUS,SCIENCE,AB MULTIMEDIA LTD,466809,550,849333502
BEIS,Met Office,2022-04-11,11 SERVICES,CHIEF FINANCIAL OFFICER,ALLSTAR BUSINESS SOLUTIONS LTD,467014,4953.26,747880191
BEIS,Met Office,2022-04-11,11 SERVICES,PROGRAMMES,BJSS LIMITED,467036,65925,613295452
BEIS,Met Office,2022-04-11,11 SERVICES,MARKETS,BJSS LIMITED,467037,16450,613295452
BEIS,Met Office,2022-04-11,08 SOFTWARE LICENCES,TECHNOLOGY AND CIO,BOXXE,467007,6466.06,734245248
BEIS,Met Office,2022-04-11,11 SERVICES,MARKETS,Cgi It Uk Limited,466797,190264.01,232615194
BEIS,Met Office,2022-04-11,03 STAFF COSTS T&S,CHIEF FINANCIAL OFFICER,ENTERPRISE RENT A CAR UK LTD,467043,2200.27,215557314
BEIS,Met Office,2022-04-11,11 SERVICES,PROGRAMMES,FLYFORM LTD,466740,5970,237333808
BEIS,Met Office,2022-04-11,11 SERVICES,PROGRAMMES,FLYFORM LTD,466740,13930,237333808
BEIS,Met Office,2022-04-11,11 SERVICES,PROGRAMMES,FLYFORM LTD,466740,29153.5,237333808
BEIS,Met Office,2022-04-11,11 SERVICES,PROGRAMMES,FLYFORM LTD,466740,750,237333808
BEIS,Met Office,2022-04-11,08 SOFTWARE LICENCES,PEOPLE,GO1 UK LEARNING LIMITED,467025,73508,323918793
BEIS,Met Office,2022-04-11,06 ACCOMMODATION,CHIEF FINANCIAL OFFICER,GRS BUILDING SERVICES SOUTH-WEST,466948,1936.58,-
BEIS,Met Office,2022-04-11,13 MISCELLANEOUS,PROGRAMMES,JOHN WILEY & SONS LTD,466953,1450,376766987
BEIS,Met Office,2022-04-11,11 SERVICES,CHIEF FINANCIAL OFFICER,LICENCE BUREAU LTD,467018,74.6,820219467
BEIS,Met Office,2022-04-11,13 MISCELLANEOUS,SERVICES,Royal Meteorological Society,467058,172.8,-
BEIS,Met Office,2022-04-11,06 ACCOMMODATION,CHIEF FINANCIAL OFFICER,SAFESTORE LTD,467050,2815.28,722887607
BEIS,Met Office,2022-04-11,11 SERVICES,TECHNOLOGY AND CIO,SPECIALIST COMPUTER CENTRES,466911,8973,313651680
BEIS,Met Office,2022-04-11,06 ACCOMMODATION,CHIEF FINANCIAL OFFICER,ST MODWEN VENTURES LTD,466946,15.94,975081008
BEIS,Met Office,2022-04-11,13 MISCELLANEOUS,SCIENCE,University Of Exeter,467021,3468.75,142047795
BEIS,Met Office,2022-04-11,11 SERVICES,PROGRAMMES,University Of Reading,462709,116998,200012659
BEIS,Met Office,2022-04-11,13 MISCELLANEOUS,SCIENCE,University Of Reading,464967,1000,200012659
BEIS,Met Office,2022-04-11,13 MISCELLANEOUS,SCIENCE,University Of Reading,464972,1000,200012659
BEIS,Met Office,2022-04-11,13 MISCELLANEOUS,SCIENCE,University Of Reading,466822,-1000,200012659
BEIS,Met Office,2022-04-11,13 MISCELLANEOUS,SCIENCE,University Of Reading,466823,-1000,200012659
BEIS,Met Office,2022-04-11,11 SERVICES,PROGRAMMES,University Of Reading,467030,-50000,200012659
BEIS,Met Office,2022-04-11,06 ACCOMMODATION,CHIEF FINANCIAL OFFICER,Valuation Office Agency,467003,990.25,888848141
BEIS,Met Office,2022-04-11,06 ACCOMMODATION,CHIEF FINANCIAL OFFICER,Valuation Office Agency,467003,3786.25,888848141
BEIS,Met Office,2022-04-11,06 ACCOMMODATION,CHIEF FINANCIAL OFFICER,Valuation Office Agency,467003,1048.5,888848141
BEIS,Met Office,2022-04-11,03 STAFF COSTS T&S,SERVICES,CARTUS LTD,459017,-103.35,768489458
BEIS,Met Office,2022-04-11,03 STAFF COSTS T&S,SERVICES,CARTUS LTD,466947,125,768489458
BEIS,Met Office,2022-04-12,11 SERVICES,MARKETS,ACCELERATION EMARKETING,467031,2500,848940776
BEIS,Met Office,2022-04-12,11 SERVICES,TECHNOLOGY AND CIO,BOXXE,466944,484,734245248
BEIS,Met Office,2022-04-12,11 SERVICES,MARKETS,CULVERWELL ASSOCIATES LTD,467008,15000,386 6119 65
BEIS,Met Office,2022-04-12,CYCLESCHEME,OTHER,EDENRED UK (CYCLESCHEME),466995,2500,649 503 520
BEIS,Met Office,2022-04-12,06 ACCOMMODATION,CHIEF FINANCIAL OFFICER,Glasgow City Council,467020,6424.2,653051560
BEIS,Met Office,2022-04-12,11 SERVICES,SERVICES,Landmark Information Group Ltd,465849,24850.2,634509735
BEIS,Met Office,2022-04-12,11 SERVICES,SERVICES,Landmark Information Group Ltd,465851,154151.1,634509735
BEIS,Met Office,2022-04-12,11 SERVICES,SERVICES,Landmark Information Group Ltd,466990,-154151.1,634509735
BEIS,Met Office,2022-04-12,11 SERVICES,SERVICES,Landmark Information Group Ltd,466991,-24850.2,634509735
BEIS,Met Office,2022-04-12,11 SERVICES,SERVICES,Landmark Information Group Ltd,466993,169347.3,634509735
BEIS,Met Office,2022-04-12,11 SERVICES,SERVICES,Landmark Information Group Ltd,466999,24844.66,634509735
BEIS,Met Office,2022-04-12,11 SERVICES,CHIEF FINANCIAL OFFICER,POSTURITE (UK) LTD,467042,207.67,583565114
BEIS,Met Office,2022-04-12,06 ACCOMMODATION,CHIEF FINANCIAL OFFICER,SHARED ACCESS LTD,465160,6906.3,920672730
BEIS,Met Office,2022-04-12,05 CONSULTANTS,OFFICE OF THE CEO,THE LEGAL DIRECTOR,466914,3940,899 338941
BEIS,Met Office,2022-04-12,11 SERVICES,PROGRAMMES,University Of Cambridge,466951,10000,214222124
BEIS,Met Office,2022-04-12,11 SERVICES,PROGRAMMES,University Of Exeter,466662,32336,142047795
BEIS,Met Office,2022-04-12,03 STAFF COSTS T&S,MARKETS,CARTUS LTD,466943,2436.6,768489458
BEIS,Met Office,2022-04-12,03 STAFF COSTS T&S,MARKETS,CARTUS LTD,466945,127.5,768489458
BEIS,Met Office,2022-04-13,06 ACCOMMODATION,CHIEF FINANCIAL OFFICER,Aberdeenshire Council,467098,3286.8,6637545408
BEIS,Met Office,2022-04-13,06 ACCOMMODATION,CHIEF FINANCIAL OFFICER,Aberdeenshire Council,467099,3286.8,6637545408
BEIS,Met Office,2022-04-13,06 ACCOMMODATION,CHIEF FINANCIAL OFFICER,Aberdeenshire Council,467100,4731,6637545408
BEIS,Met Office,2022-04-13,11 SERVICES,SERVICES,ADAM PHONES LTD,467024,88.35,538877093
BEIS,Met Office,2022-04-13,SOFTWARE LICENCES,CHIEF FINANCIAL OFFICER,ADVANCED BUSINESS SOLUTIONS LTD,467034,3825,927547983
BEIS,Met Office,2022-04-13,06 ACCOMMODATION,CHIEF FINANCIAL OFFICER,ANGLIAN WATER BUSINESS NATIONAL LTD,467015,22.26,51406002
BEIS,Met Office,2022-04-13,11 SERVICES,CHIEF FINANCIAL OFFICER,ANVIL MOBILE LIMITED,467039,370.95,981686175
BEIS,Met Office,2022-04-13,06 ACCOMMODATION,CHIEF FINANCIAL OFFICER,BIDVEST NOONAN UK LTD,467002,238.14,GB847176988
BEIS,Met Office,2022-04-13,11 SERVICES,CHIEF FINANCIAL OFFICER,BT CONFERENCING,467097,92.56,245719348
BEIS,Met Office,2022-04-13,06 ACCOMMODATION,CHIEF FINANCIAL OFFICER,BUSINESS SUPPORT CENTRE LTD,467110,53.12,927365208
BEIS,Met Office,2022-04-13,06 ACCOMMODATION,CHIEF FINANCIAL OFFICER,CALOR GAS LIMITED,466988,750,207610984
BEIS,Met Office,2022-04-13,06 ACCOMMODATION,CHIEF FINANCIAL OFFICER,CALOR GAS LIMITED,467019,306.13,207610984
BEIS,Met Office,2022-04-13,11 SERVICES,SERVICES,CLOUDREACH EUROPE LIMITED,467028,7300,978187168
BEIS,Met Office,2022-04-13,11 SERVICES,MARKETS,CONSULTEC,23744,3350.87,400005915
BEIS,Met Office,2022-04-13,11 SERVICES,MARKETS,CONSULTEC,23745,2513.15,400005915
BEIS,Met Office,2022-04-13,03 STAFF COSTS T&S,PROGRAMMES,DBS FINANCE RECEIPTS CTS,467038,4785,888805068
BEIS,Met Office,2022-04-13,03 STAFF COSTS T&S,SERVICES,DBS FINANCE RECEIPTS CTS,467038,5711,888805068
BEIS,Met Office,2022-04-13,11 SERVICES,MARKETS,DBS FINANCE RECEIPTS CTS,467112,12903.73,888805068
BEIS,Met Office,2022-04-13,10 EQUIPMENT MAINTENANCE,SERVICES,DEUTSCHE WINDGUARD WIND TUNNEL SERVICES GMBH,23694,381.6,DE225152482
BEIS,Met Office,2022-04-13,10 EQUIPMENT MAINTENANCE,SERVICES,DEUTSCHE WINDGUARD WIND TUNNEL SERVICES GMBH,23694,798.82,DE225152482
BEIS,Met Office,2022-04-13,10 EQUIPMENT MAINTENANCE,SERVICES,DEUTSCHE WINDGUARD WIND TUNNEL SERVICES GMBH,23694,381.6,DE225152482
BEIS,Met Office,2022-04-13,10 EQUIPMENT MAINTENANCE,SERVICES,DEUTSCHE WINDGUARD WIND TUNNEL SERVICES GMBH,23694,42.4,DE225152482
BEIS,Met Office,2022-04-13,10 EQUIPMENT MAINTENANCE,SERVICES,DEUTSCHE WINDGUARD WIND TUNNEL SERVICES GMBH,23694,8.48,DE225152482
BEIS,Met Office,2022-04-13,06 ACCOMMODATION,CHIEF FINANCIAL OFFICER,EDF ENERGY CUSTOMERS PLC,467011,420569.46,523041202
BEIS,Met Office,2022-04-13,06 ACCOMMODATION,CHIEF FINANCIAL OFFICER,EDF ENERGY CUSTOMERS PLC,467013,138269.43,523041202
BEIS,Met Office,2022-04-13,11 SERVICES,CHIEF FINANCIAL OFFICER,EXPONENTIAL-E,467156,1127.89,GB798572653
BEIS,Met Office,2022-04-13,11 SERVICES,PROGRAMMES,FUNDACAO ARTHUR BERNARDES - FUNARBE,467166,193528.34,-
BEIS,Met Office,2022-04-13,11 SERVICES,CHIEF FINANCIAL OFFICER,GAMMA TELECOM LTD,467040,110.04,823820344
BEIS,Met Office,2022-04-13,11 SERVICES,CHIEF FINANCIAL OFFICER,GAMMA TELECOM LTD,467040,27455.26,823820344
BEIS,Met Office,2022-04-13,11 SERVICES,CHIEF FINANCIAL OFFICER,GB GROUP PLC,467004,574.41,539716218
BEIS,Met Office,2022-04-13,11 SERVICES,CHIEF FINANCIAL OFFICER,GIBRALTAR NYNEX COMMUNICATIONS LTD,467106,702,NOVAT
BEIS,Met Office,2022-04-13,STOCK,SERVICES,GRAW RADIOSONDES GMBH & CO KG,23635,0,DE133494144
BEIS,Met Office,2022-04-13,TRADE CREDITORS,SERVICES,GRAW RADIOSONDES GMBH & CO KG,23635,1665.14,DE133494144
BEIS,Met Office,2022-04-13,11 SERVICES,SERVICES,GRAW RADIOSONDES GMBH & CO KG,23635,50.46,DE133494144
BEIS,Met Office,2022-04-13,06 ACCOMMODATION,CHIEF FINANCIAL OFFICER,Highland Council,467094,1494,663785203
BEIS,Met Office,2022-04-13,06 ACCOMMODATION,CHIEF FINANCIAL OFFICER,Highland Council,467095,1494,663785203
BEIS,Met Office,2022-04-13,06 ACCOMMODATION,CHIEF FINANCIAL OFFICER,Highland Council,467096,1494,663785203
BEIS,Met Office,2022-04-13,11 SERVICES,MARKETS,ICIMOD,10618,20570.55,-
BEIS,Met Office,2022-04-13,11 SERVICES,CHIEF FINANCIAL OFFICER,JERSEY TELECOM,467000,1223.16,NOTVATREG
BEIS,Met Office,2022-04-13,11 SERVICES,CHIEF FINANCIAL OFFICER,JERSEY TELECOM,467000,61.16,NOTVATREG
BEIS,Met Office,2022-04-13,11 SERVICES,SERVICES,Landmark Information Group Ltd,467134,28535.4,634509735
BEIS,Met Office,2022-04-13,11 SERVICES,PROGRAMMES,MAURITIUS METEOROLOGICAL SOCIETY,466093,9500,-
BEIS,Met Office,2022-04-13,11 SERVICES,CHIEF FINANCIAL OFFICER,MAWASEM LTD,467103,138701.01,197694731
BEIS,Met Office,2022-04-13,06 ACCOMMODATION,CHIEF FINANCIAL OFFICER,MOUNT CHARLES GROUP LTD,466994,533.67,517116274
BEIS,Met Office,2022-04-13,11 SERVICES,SERVICES,NSSL GLOBAL LTD,10591,53.21,725151948
BEIS,Met Office,2022-04-13,11 SERVICES,SERVICES,NSSL GLOBAL LTD,10592,68.42,725151948
BEIS,Met Office,2022-04-13,10 EQUIPMENT MAINTENANCE,TECHNOLOGY AND CIO,ORACLE CORPORATION UK LTD,467032,39592.74,391313073
BEIS,Met Office,2022-04-13,10 EQUIPMENT MAINTENANCE,TECHNOLOGY AND CIO,ORACLE CORPORATION UK LTD,467033,15952.19,391313073
BEIS,Met Office,2022-04-13,10 EQUIPMENT MAINTENANCE,TECHNOLOGY AND CIO,ORACLE CORPORATION UK LTD,467152,15952.19,391313073
BEIS,Met Office,2022-04-13,06 ACCOMMODATION,CHIEF FINANCIAL OFFICER,POWER NI ENERGY LTD,467010,549.52,617518142
BEIS,Met Office,2022-04-13,STOCK,SERVICES,RAYMETRICS S.A. (GREEK ACCOUNT),23574,-1459.03,EL999641589
BEIS,Met Office,2022-04-13,STOCK,SERVICES,RAYMETRICS S.A. (GREEK ACCOUNT),23574,0,EL999641589
BEIS,Met Office,2022-04-13,TRADE CREDITORS,SERVICES,RAYMETRICS S.A. (GREEK ACCOUNT),23574,14590.3,EL999641589
BEIS,Met Office,2022-04-13,TRADE CREDITORS,SERVICES,RAYMETRICS S.A. (GREEK ACCOUNT),23574,1308.96,EL999641589
BEIS,Met Office,2022-04-13,10 EQUIPMENT MAINTENANCE,SERVICES,RAYMETRICS S.A. (GREEK ACCOUNT),23574,7503.58,EL999641589
BEIS,Met Office,2022-04-13,11 SERVICES,PROGRAMMES,REGENTS OF THE UNIVERSITY OF COLORADO,10587,54083.87,-
BEIS,Met Office,2022-04-13,07 EQUIPMENT,SCIENCE,RESONATE TESTING LTD,467101,240,225 2677 10
BEIS,Met Office,2022-04-13,11 SERVICES,PROGRAMMES,RICHARD NORBY,10608,7915.75,-
BEIS,Met Office,2022-04-13,06 ACCOMMODATION,CHIEF FINANCIAL OFFICER,RIVER RIDGE,466997,109.09,176286083
BEIS,Met Office,2022-04-13,13 MISCELLANEOUS,SERVICES,Royal Meteorological Society,467116,132,-
BEIS,Met Office,2022-04-13,06 ACCOMMODATION,CHIEF FINANCIAL OFFICER,S M THERMAL IMAGING LIMITED,467109,825,202053964
BEIS,Met Office,2022-04-13,06 ACCOMMODATION,CHIEF FINANCIAL OFFICER,SEVERN TRENT WATER LIMITED,467001,4681.64,-
BEIS,Met Office,2022-04-13,06 ACCOMMODATION,CHIEF FINANCIAL OFFICER,Severn Trent Water Ltd,466989,23.01,486985565
BEIS,Met Office,2022-04-13,08 SOFTWARE LICENCES,SERVICES,SOUTRON GLOBAL INC,463794,320,863868129
BEIS,Met Office,2022-04-13,06 ACCOMMODATION,MARKETS,SSE CONTRACTING LTD,466985,125.3,382894546
BEIS,Met Office,2022-04-13,06 ACCOMMODATION,CHIEF FINANCIAL OFFICER,ST MODWEN VENTURES LTD,467009,52.37,975081008
BEIS,Met Office,2022-04-13,11 SERVICES,PROGRAMMES,University College London,467005,25768.89,524371168
BEIS,Met Office,2022-04-13,11 SERVICES,PROGRAMMES,University Of Exeter,466996,17031,142047795
BEIS,Met Office,2022-04-13,11 SERVICES,PROGRAMMES,University Of Exeter,467105,31545,142047795
BEIS,Met Office,2022-04-13,13 MISCELLANEOUS,SCIENCE,University Of Oxford,467027,1000,125506730
BEIS,Met Office,2022-04-14,06 ACCOMMODATION,CHIEF FINANCIAL OFFICER,Belfast International Airport Ltd,467149,3198.72,617777601
BEIS,Met Office,2022-04-14,08 SOFTWARE LICENCES,TECHNOLOGY AND CIO,BYTES SOFTWARE SERVICES LTD,467107,1624.35,823818226
BEIS,Met Office,2022-04-14,08 SOFTWARE LICENCES,TECHNOLOGY AND CIO,BYTES SOFTWARE SERVICES LTD,467107,80.22,823818226
BEIS,Met Office,2022-04-14,08 SOFTWARE LICENCES,TECHNOLOGY AND CIO,BYTES SOFTWARE SERVICES LTD,467107,1990.6,823818226
BEIS,Met Office,2022-04-14,08 SOFTWARE LICENCES,TECHNOLOGY AND CIO,BYTES SOFTWARE SERVICES LTD,467148,2582.3,823818226
BEIS,Met Office,2022-04-14,08 SOFTWARE LICENCES,TECHNOLOGY AND CIO,BYTES SOFTWARE SERVICES LTD,467148,2139.2,823818226
BEIS,Met Office,2022-04-14,08 SOFTWARE LICENCES,TECHNOLOGY AND CIO,BYTES SOFTWARE SERVICES LTD,467148,7962.36,823818226
BEIS,Met Office,2022-04-14,08 SOFTWARE LICENCES,TECHNOLOGY AND CIO,BYTES SOFTWARE SERVICES LTD,467148,4313.76,823818226
BEIS,Met Office,2022-04-14,11 SERVICES,TECHNOLOGY AND CIO,CLOUDREACH EUROPE LIMITED,467029,5150,978187168
BEIS,Met Office,2022-04-14,FIXTURE & FITTINGS,CHIEF FINANCIAL OFFICER,FMS INTERIOR SERVICES LTD,467114,89.96,922056940
BEIS,Met Office,2022-04-14,FIXTURE & FITTINGS,CHIEF FINANCIAL OFFICER,FMS INTERIOR SERVICES LTD,467114,1.8,922056940
BEIS,Met Office,2022-04-14,13 MISCELLANEOUS,PEOPLE,NAS MEDIA LTD,466950,2495,224667500
BEIS,Met Office,2022-04-14,11 SERVICES,CHIEF FINANCIAL OFFICER,SURE SOUTH ATLANTIC LTD,467157,4839.76,-
BEIS,Met Office,2022-04-14,11 SERVICES,CHIEF FINANCIAL OFFICER,SURE SOUTH ATLANTIC LTD,467159,783.5,-
BEIS,Met Office,2022-04-19,11 SERVICES,PROGRAMMES,BJSS LIMITED,467035,15637,613295452
BEIS,Met Office,2022-04-19,13 MISCELLANEOUS,PEOPLE,BROADBEAN TECHNOLOGY LTD,466807,128218.38,GB184088778
BEIS,Met Office,2022-04-19,11 SERVICES,CHIEF FINANCIAL OFFICER,BT GLOBAL SERVICES,467252,787.12,245719348
BEIS,Met Office,2022-04-19,13 MISCELLANEOUS,PEOPLE,CABINET OFFICE - COF LEAD ACCOUNT,467238,19244.9,-
BEIS,Met Office,2022-04-19,13 MISCELLANEOUS,CHIEF FINANCIAL OFFICER,CANON UK LTD,467051,650,523797128
BEIS,Met Office,2022-04-19,13 MISCELLANEOUS,CHIEF FINANCIAL OFFICER,CANON UK LTD,467111,11164.66,523797128
BEIS,Met Office,2022-04-19,06 ACCOMMODATION,CHIEF FINANCIAL OFFICER,COMMERCIAL TRANSFER LTD,467233,1599.36,891436990
BEIS,Met Office,2022-04-19,10 EQUIPMENT MAINTENANCE,TECHNOLOGY AND CIO,COMPUTACENTER (UK) LTD,467022,-2604.87,490334648
BEIS,Met Office,2022-04-19,10 EQUIPMENT MAINTENANCE,TECHNOLOGY AND CIO,COMPUTACENTER (UK) LTD,467087,-2604.87,490334648
BEIS,Met Office,2022-04-19,10 EQUIPMENT MAINTENANCE,TECHNOLOGY AND CIO,COMPUTACENTER (UK) LTD,467254,13445.8,490334648
BEIS,Met Office,2022-04-19,12 INTERNATIONAL,MARKETS,CROWN AGENTS BANK,467147,14239.47,-
BEIS,Met Office,2022-04-19,CYCLESCHEME,OTHER,EDENRED EB (SHOPPING VOUCHERS),467153,680,649 503 520
BEIS,Met Office,2022-04-19,CYCLESCHEME,OTHER,EDENRED EB (SHOPPING VOUCHERS),467154,753,649 503 520
BEIS,Met Office,2022-04-19,CYCLESCHEME,OTHER,EDENRED EB (SHOPPING VOUCHERS),467155,333,649 503 520
BEIS,Met Office,2022-04-19,11 SERVICES,PEOPLE,EDENRED I&M (IRS VOUCHERS),467049,152870.7,649 503 520
BEIS,Met Office,2022-04-19,11 SERVICES,PEOPLE,EDENRED I&M (IRS VOUCHERS),467049,4892.7,649 503 520
BEIS,Met Office,2022-04-19,06 ACCOMMODATION,CHIEF FINANCIAL OFFICER,EDF ENERGY CUSTOMERS PLC,467244,2326.58,523041202
BEIS,Met Office,2022-04-19,06 ACCOMMODATION,SERVICES,J J HARRISON LANDSCAPES LTD,467234,260,317 0006 12
BEIS,Met Office,2022-04-19,11 SERVICES,MARKETS,LHR BUSINESS SUPPORT CENTRE LTD,467104,66.65,927365404
BEIS,Met Office,2022-04-19,04 CONTRACTORS,PEOPLE,MATRIX SCM LIMITED,466984,304091.07,249 5734 68
BEIS,Met Office,2022-04-19,04 CONTRACTORS,PEOPLE,MATRIX SCM LIMITED,467235,214073.79,249 5734 68
BEIS,Met Office,2022-04-19,06 ACCOMMODATION,CHIEF FINANCIAL OFFICER,POWER NI ENERGY LTD,467240,153.17,617518142
BEIS,Met Office,2022-04-19,06 ACCOMMODATION,CHIEF FINANCIAL OFFICER,SADDLES & PADDLES EXETER LTD,467023,213.72,152264528
BEIS,Met Office,2022-04-19,06 ACCOMMODATION,CHIEF FINANCIAL OFFICER,SHETLAND CLEANING SERVICES,467231,739.97,430028404
BEIS,Met Office,2022-04-19,06 ACCOMMODATION,CHIEF FINANCIAL OFFICER,South West Water Ltd,467251,2876.43,236873674
BEIS,Met Office,2022-04-19,11 SERVICES,CHIEF FINANCIAL OFFICER,SURE SOUTH ATLANTIC LTD,467239,2168.79,NOVATREG
BEIS,Met Office,2022-04-19,11 SERVICES,CHIEF FINANCIAL OFFICER,SURE SOUTH ATLANTIC LTD (ST HELENA),467237,728.78,30005
BEIS,Met Office,2022-04-19,11 SERVICES,CHIEF FINANCIAL OFFICER,TELEFONICA O2 UK LIMITED,467044,7882.49,778603785
BEIS,Met Office,2022-04-19,11 SERVICES,PEOPLE,THE DISRUPTIVE HR AGENCY LTD,467245,3000,226276996
BEIS,Met Office,2022-04-19,13 MISCELLANEOUS,SCIENCE,University Of Oxford,467026,1000,125506730
BEIS,Met Office,2022-04-19,11 SERVICES,MARKETS,WORLDPAY (UK) LTD,467163,450.45,991280207
BEIS,Met Office,2022-04-19,11 SERVICES,MARKETS,WORLDPAY (UK) LTD,467232,42.42,991280207
BEIS,Met Office,2022-04-20,11 SERVICES,CHIEF FINANCIAL OFFICER,ALLSTAR BUSINESS SOLUTIONS LTD,467259,3589.6,747880191
BEIS,Met Office,2022-04-20,11 SERVICES,TECHNOLOGY AND CIO,BAE SYSTEMS APPLIED INTELLIGENCE LIMITED,462867,11361.84,GB641407169
BEIS,Met Office,2022-04-20,11 SERVICES,TECHNOLOGY AND CIO,BAE SYSTEMS APPLIED INTELLIGENCE LIMITED,463098,10753.17,GB641407169
BEIS,Met Office,2022-04-20,11 SERVICES,TECHNOLOGY AND CIO,BAE SYSTEMS APPLIED INTELLIGENCE LIMITED,465452,2814,GB641407169
BEIS,Met Office,2022-04-20,11 SERVICES,TECHNOLOGY AND CIO,BAE SYSTEMS APPLIED INTELLIGENCE LIMITED,465453,10318,GB641407169
BEIS,Met Office,2022-04-20,11 SERVICES,TECHNOLOGY AND CIO,BAE SYSTEMS APPLIED INTELLIGENCE LIMITED,466806,-10753.17,GB641407169
BEIS,Met Office,2022-04-20,11 SERVICES,TECHNOLOGY AND CIO,BAE SYSTEMS APPLIED INTELLIGENCE LIMITED,466908,938,GB641407169
BEIS,Met Office,2022-04-20,11 SERVICES,TECHNOLOGY AND CIO,BAE SYSTEMS APPLIED INTELLIGENCE LIMITED,467054,-938,GB641407169
BEIS,Met Office,2022-04-20,11 SERVICES,TECHNOLOGY AND CIO,BAE SYSTEMS APPLIED INTELLIGENCE LIMITED,467055,-2814,GB641407169
BEIS,Met Office,2022-04-20,11 SERVICES,TECHNOLOGY AND CIO,BAE SYSTEMS APPLIED INTELLIGENCE LIMITED,467056,-10318,GB641407169
BEIS,Met Office,2022-04-20,11 SERVICES,TECHNOLOGY AND CIO,BAE SYSTEMS APPLIED INTELLIGENCE LIMITED,467115,-1.76,GB641407169
BEIS,Met Office,2022-04-20,11 SERVICES,MARKETS,"BASILIO SOZINHO CUBULA SERVI�OS, E.I.",10623,4691.02,N/A
BEIS,Met Office,2022-04-20,11 SERVICES,TECHNOLOGY AND CIO,CLOUDREACH EUROPE LIMITED,467298,1349.5,978187168
BEIS,Met Office,2022-04-20,11 SERVICES,TECHNOLOGY AND CIO,CLOUDREACH EUROPE LIMITED,467298,2522.42,978187168
BEIS,Met Office,2022-04-20,06 ACCOMMODATION,CHIEF FINANCIAL OFFICER,D&G OFFICE SERVICES LTD,467160,457,272997547
BEIS,Met Office,2022-04-20,06 ACCOMMODATION,CHIEF FINANCIAL OFFICER,D&G OFFICE SERVICES LTD,467160,321,272997547
BEIS,Met Office,2022-04-20,03 STAFF COSTS T&S,CHIEF FINANCIAL OFFICER,ENTERPRISE RENT A CAR UK LTD,467261,1924.24,215557314
BEIS,Met Office,2022-04-20,03 STAFF COSTS T&S,CHIEF FINANCIAL OFFICER,ENTERPRISE RENT A CAR UK LTD,467262,156.52,215557314
BEIS,Met Office,2022-04-20,03 STAFF COSTS T&S,SERVICES,FALKLAND ISLAND COMPANY LTD,467290,700,N/A
BEIS,Met Office,2022-04-20,03 STAFF COSTS T&S,SERVICES,FALKLAND ISLAND COMPANY LTD,467291,700,N/A
BEIS,Met Office,2022-04-20,03 STAFF COSTS T&S,SERVICES,FALKLAND ISLAND COMPANY LTD,467292,700,N/A
BEIS,Met Office,2022-04-20,11 SERVICES,PROGRAMMES,FCDO,467270,161.98,888813560
BEIS,Met Office,2022-04-20,11 SERVICES,PROGRAMMES,GAMMA TELECOM LTD,467041,3959.45,823820344
BEIS,Met Office,2022-04-20,11 SERVICES,PROGRAMMES,GAMMA TELECOM LTD,467041,69.86,823820344
BEIS,Met Office,2022-04-20,11 SERVICES,PROGRAMMES,GAMMA TELECOM LTD,467041,38.14,823820344
BEIS,Met Office,2022-04-20,11 SERVICES,MARKETS,GINGER PUBLICITY LIMITED,463375,11750,207988567
BEIS,Met Office,2022-04-20,13 MISCELLANEOUS,SERVICES,GQA QUALIFICATIONS LTD,466698,25,-
BEIS,Met Office,2022-04-20,11 SERVICES,CHIEF FINANCIAL OFFICER,HMRC AR RECEIPTS,467297,11600.33,888848141
BEIS,Met Office,2022-04-20,11 SERVICES,MARKETS,INSTITUTE OF WATER MODELLING (IWM) BANGLADESH,466992,45152.23,0014051470101
BEIS,Met Office,2022-04-20,06 ACCOMMODATION,CHIEF FINANCIAL OFFICER,JAMES & MARCIA BENJAMIN,466711,520,-
BEIS,Met Office,2022-04-20,13 MISCELLANEOUS,SCIENCE,JOHN WILEY & SONS LTD,467132,220,376766987
BEIS,Met Office,2022-04-20,11 SERVICES,SERVICES,Knmi,23503,18027.07,821693992B01
BEIS,Met Office,2022-04-20,11 SERVICES,SERVICES,Knmi,23690,9116.02,821693992B01
BEIS,Met Office,2022-04-20,11 SERVICES,SERVICES,Knmi,23691,-18232.04,821693992B01
BEIS,Met Office,2022-04-20,11 SERVICES,SCIENCE,MERCATOR OCEAN INTERNATIONAL,23752,91259.95,-
BEIS,Met Office,2022-04-20,06 ACCOMMODATION,CHIEF FINANCIAL OFFICER,Mitie Landscapes Ltd,467151,6815.38,GB 416 706 654
BEIS,Met Office,2022-04-20,11 SERVICES,CHIEF FINANCIAL OFFICER,OPEN TEXT UK LTD,453209,100,837871308
BEIS,Met Office,2022-04-20,11 SERVICES,CHIEF FINANCIAL OFFICER,OPEN TEXT UK LTD,463307,100,837871308
BEIS,Met Office,2022-04-20,11 SERVICES,CHIEF FINANCIAL OFFICER,OPEN TEXT UK LTD,464545,100.11,837871308
BEIS,Met Office,2022-04-20,10 EQUIPMENT MAINTENANCE,SERVICES,OTT HYDROMET FELLBACH GMBH,23598,91.65,DE 250580689
BEIS,Met Office,2022-04-20,11 SERVICES,MARKETS,RIMES,10590,34230.49,-
BEIS,Met Office,2022-04-20,06 ACCOMMODATION,CHIEF FINANCIAL OFFICER,Severn Trent Water Ltd,467296,211.09,486985565
BEIS,Met Office,2022-04-20,11 SERVICES,PROGRAMMES,UCAR INCOMING PAYMENTS,10588,15547.92,-
BEIS,Met Office,2022-04-21,11 SERVICES,MARKETS,FCDO,465224,3089.73,888813560
BEIS,Met Office,2022-04-21,11 SERVICES,MARKETS,FCDO,465530,890.45,888813560
BEIS,Met Office,2022-04-21,11 SERVICES,MARKETS,FCDO,466224,3095.67,888813560
BEIS,Met Office,2022-04-21,11 SERVICES,PROGRAMMES,FCDO,467355,573.64,888813560
BEIS,Met Office,2022-04-21,03 STAFF COSTS T&S,SERVICES,HITACHI CAPITAL VEHICLE SOLUTIONS,466757,295.93,GB 823 8248 22
BEIS,Met Office,2022-04-21,03 STAFF COSTS T&S,SERVICES,HITACHI CAPITAL VEHICLE SOLUTIONS,466757,3091.44,GB 823 8248 22
BEIS,Met Office,2022-04-21,06 ACCOMMODATION,CHIEF FINANCIAL OFFICER,MORAY COUNCIL,467266,2925,663755506
BEIS,Met Office,2022-04-22,08 SOFTWARE LICENCES,CHIEF FINANCIAL OFFICER,CEMAR,467268,135,915042161
BEIS,Met Office,2022-04-22,INFORMATION TECHNOLOGY,TECHNOLOGY AND CIO,COMPUTACENTER (UK) LTD,464983,1196.75,490334648
BEIS,Met Office,2022-04-22,07 EQUIPMENT,MARKETS,COMPUTACENTER (UK) LTD,464984,93.76,490334648
BEIS,Met Office,2022-04-22,11 SERVICES,PROGRAMMES,HOGAN LOVELLS INTERNATIONAL LLP,467272,24125.78,GB123371543
BEIS,Met Office,2022-04-22,11 SERVICES,PROGRAMMES,HOGAN LOVELLS INTERNATIONAL LLP,467273,2556.92,GB123371543
BEIS,Met Office,2022-04-22,TRADE CREDITORS,OTHER,NATWEST COMMERCIAL CARDS DIVISION,467288,141003.73,N/A
BEIS,Met Office,2022-04-22,07 EQUIPMENT,CHIEF FINANCIAL OFFICER,NATWEST COMMERCIAL CARDS DIVISION,467289,3338.43,N/A
BEIS,Met Office,2022-04-25,11 SERVICES,SERVICES,APPLIED SATELLITE TECHNOLOGY SYSTEMS LTD,467386,298.3,720108683
BEIS,Met Office,2022-04-25,08 SOFTWARE LICENCES,TECHNOLOGY AND CIO,BMC SOFTWARE DISTRIBUTION B.V.,467267,6807.9,-
BEIS,Met Office,2022-04-25,06 ACCOMMODATION,CHIEF FINANCIAL OFFICER,British Gas Trading Ltd,467363,345.7,684966762
BEIS,Met Office,2022-04-25,08 SOFTWARE LICENCES,CHIEF FINANCIAL OFFICER,CEMAR,467359,90,915042161
BEIS,Met Office,2022-04-25,07 EQUIPMENT,SCIENCE,COMPUTACENTER (UK) LTD,467408,6881.2,490334648
BEIS,Met Office,2022-04-25,07 EQUIPMENT,SCIENCE,GOOD PACKING COMPANY LTD,467271,249.06,GB109595252
BEIS,Met Office,2022-04-25,07 EQUIPMENT,SCIENCE,GOOD PACKING COMPANY LTD,467271,125,GB109595252
BEIS,Met Office,2022-04-25,11 SERVICES,CHIEF FINANCIAL OFFICER,INTEROUTE COMMUNICATIONS LIMITED,467256,7100,832 7071 39
BEIS,Met Office,2022-04-25,06 ACCOMMODATION,CHIEF FINANCIAL OFFICER,MORAY COUNCIL,467164,2938.2,663755506
BEIS,Met Office,2022-04-25,06 ACCOMMODATION,CHIEF FINANCIAL OFFICER,MORAY COUNCIL,467405,-2938.2,663755506
BEIS,Met Office,2022-04-25,06 ACCOMMODATION,CHIEF FINANCIAL OFFICER,MORAY COUNCIL,467406,2938.2,663755506
BEIS,Met Office,2022-04-25,13 MISCELLANEOUS,CHIEF FINANCIAL OFFICER,NORSCOTT VENDING SERVICES LTD,467365,77.7,751402071
BEIS,Met Office,2022-04-25,10 EQUIPMENT MAINTENANCE,TECHNOLOGY AND CIO,ORACLE CORPORATION UK LTD,467253,5684.33,391313073
BEIS,Met Office,2022-04-25,08 SOFTWARE LICENCES,TECHNOLOGY AND CIO,ORACLE CORPORATION UK LTD,467392,3380.85,391313073
BEIS,Met Office,2022-04-25,10 EQUIPMENT MAINTENANCE,TECHNOLOGY AND CIO,ORACLE CORPORATION UK LTD,467393,19971.29,391313073
BEIS,Met Office,2022-04-25,10 EQUIPMENT MAINTENANCE,TECHNOLOGY AND CIO,ORACLE CORPORATION UK LTD,467412,28686.72,391313073
BEIS,Met Office,2022-04-25,11 SERVICES,MARKETS,ORIENTATIONS EVENTS LTD,465653,-161784.74,374434389
BEIS,Met Office,2022-04-25,PAYE AND VAT,OTHER,SECTIGO LTD,467260,0,834875295
BEIS,Met Office,2022-04-25,06 ACCOMMODATION,CHIEF FINANCIAL OFFICER,South West Water Ltd,467362,866.35,236873674
BEIS,Met Office,2022-04-25,06 ACCOMMODATION,CHIEF FINANCIAL OFFICER,Stirling Council,467360,622.5,663873401
BEIS,Met Office,2022-04-25,06 ACCOMMODATION,CHIEF FINANCIAL OFFICER,Stirling Council,467361,485.55,663873401
BEIS,Met Office,2022-04-25,PLANT AND EQUIPMENT,CHIEF FINANCIAL OFFICER,STRINGFELLOW BUILDING CONTRACTORS LTD.,466554,15410,155807746
BEIS,Met Office,2022-04-25,11 SERVICES,SERVICES,UK TELEMATICS LIMITED,467394,57.75,GB763051643
BEIS,Met Office,2022-04-25,11 SERVICES,OFFICE OF THE CEO,University Of Oxford,467085,8780,125506730
BEIS,Met Office,2022-04-25,06 ACCOMMODATION,CHIEF FINANCIAL OFFICER,V & M MORRIS AND SON,467364,300,-
BEIS,Met Office,2022-04-25,PLANT AND EQUIPMENT,PROGRAMMES,VAISALA LTD,467371,53500,336100011
BEIS,Met Office,2022-04-25,11 SERVICES,CHIEF FINANCIAL OFFICER,REACTED PERSONAL DATA,467422,156,729159704
BEIS,Met Office,2022-04-26,11 SERVICES,CHIEF FINANCIAL OFFICER,British Red Cross Society,467357,1130,706926227
BEIS,Met Office,2022-04-26,11 SERVICES,MARKETS,FCDO,467356,3430.18,888813560
BEIS,Met Office,2022-04-26,11 SERVICES,MARKETS,IPSOS (MARKET RESEARCH) LTD,466393,5100,443932151
BEIS,Met Office,2022-04-26,11 SERVICES,SERVICES,IPSOS (MARKET RESEARCH) LTD,466393,2500,443932151
BEIS,Met Office,2022-04-26,06 ACCOMMODATION,CHIEF FINANCIAL OFFICER,MORAY COUNCIL,467241,1593.6,663755506
BEIS,Met Office,2022-04-26,06 ACCOMMODATION,CHIEF FINANCIAL OFFICER,MORAY COUNCIL,467453,1593.6,663755506
BEIS,Met Office,2022-04-26,06 ACCOMMODATION,CHIEF FINANCIAL OFFICER,MORAY COUNCIL,467454,-1593.6,663755506
BEIS,Met Office,2022-04-26,07 EQUIPMENT,SCIENCE,University Of Leeds,466942,56910,613451470
BEIS,Met Office,2022-04-26,11 SERVICES,PEOPLE,WORK POSITIVE LTD,467459,82,909 7316 06
BEIS,Met Office,2022-04-26,11 SERVICES,SERVICES,WORK POSITIVE LTD,467459,1450,909 7316 06
BEIS,Met Office,2022-04-27,11 SERVICES,CHIEF FINANCIAL OFFICER,APPLE CENTRAL TAXIS,467508,411.3,449238720
BEIS,Met Office,2022-04-27,11 SERVICES,SERVICES,APPLIED SATELLITE TECHNOLOGY SYSTEMS LTD,467385,7163.55,720108683
BEIS,Met Office,2022-04-27,11 SERVICES,SERVICES,APPLIED SATELLITE TECHNOLOGY SYSTEMS LTD,467385,1438.37,720108683
BEIS,Met Office,2022-04-27,11 SERVICES,TECHNOLOGY AND CIO,BAE SYSTEMS APPLIED INTELLIGENCE LIMITED,462126,6221.96,GB641407169
BEIS,Met Office,2022-04-27,11 SERVICES,TECHNOLOGY AND CIO,BAE SYSTEMS APPLIED INTELLIGENCE LIMITED,462952,1800,GB641407169
BEIS,Met Office,2022-04-27,11 SERVICES,TECHNOLOGY AND CIO,BAE SYSTEMS APPLIED INTELLIGENCE LIMITED,462953,-6221.96,GB641407169
BEIS,Met Office,2022-04-27,11 SERVICES,TECHNOLOGY AND CIO,BAE SYSTEMS APPLIED INTELLIGENCE LIMITED,463018,12540,GB641407169
BEIS,Met Office,2022-04-27,11 SERVICES,TECHNOLOGY AND CIO,BAE SYSTEMS APPLIED INTELLIGENCE LIMITED,463087,675,GB641407169
BEIS,Met Office,2022-04-27,11 SERVICES,TECHNOLOGY AND CIO,BAE SYSTEMS APPLIED INTELLIGENCE LIMITED,463993,12916.38,GB641407169
BEIS,Met Office,2022-04-27,11 SERVICES,TECHNOLOGY AND CIO,BAE SYSTEMS APPLIED INTELLIGENCE LIMITED,465622,10395,GB641407169
BEIS,Met Office,2022-04-27,11 SERVICES,TECHNOLOGY AND CIO,BAE SYSTEMS APPLIED INTELLIGENCE LIMITED,465626,18408.25,GB641407169
BEIS,Met Office,2022-04-27,11 SERVICES,TECHNOLOGY AND CIO,BAE SYSTEMS APPLIED INTELLIGENCE LIMITED,465628,8324.75,GB641407169
BEIS,Met Office,2022-04-27,11 SERVICES,TECHNOLOGY AND CIO,BAE SYSTEMS APPLIED INTELLIGENCE LIMITED,465692,10820,GB641407169
BEIS,Met Office,2022-04-27,11 SERVICES,TECHNOLOGY AND CIO,BAE SYSTEMS APPLIED INTELLIGENCE LIMITED,466716,-12540,GB641407169
BEIS,Met Office,2022-04-27,11 SERVICES,TECHNOLOGY AND CIO,BAE SYSTEMS APPLIED INTELLIGENCE LIMITED,466719,2164.01,GB641407169
BEIS,Met Office,2022-04-27,11 SERVICES,MARKETS,BMG RESEARCH LTD,467504,1980,580 6606 32
BEIS,Met Office,2022-04-27,11 SERVICES,CHIEF FINANCIAL OFFICER,British Red Cross Society,464978,1166,706926227
BEIS,Met Office,2022-04-27,11 SERVICES,SCIENCE,Bureau Of Meteorology,466496,72000,-
BEIS,Met Office,2022-04-27,11 SERVICES,PEOPLE,BUSINESS DISABILITY FORUM,467411,4750,GB645620736
BEIS,Met Office,2022-04-27,06 ACCOMMODATION,CHIEF FINANCIAL OFFICER,CALOR GAS LIMITED,467480,844.44,207610984
BEIS,Met Office,2022-04-27,06 ACCOMMODATION,CHIEF FINANCIAL OFFICER,CARDIFF COMMISSIONING LTD,467410,900,484190139
BEIS,Met Office,2022-04-27,11 SERVICES,SERVICES,COLLECTE LOCALISATION SATELLITES (C.L.S.),23638,6950.69,FR95338034390
BEIS,Met Office,2022-04-27,07 EQUIPMENT,SERVICES,COMPUTACENTER (UK) LTD,467395,2428.8,490334648
BEIS,Met Office,2022-04-27,11 SERVICES,MARKETS,DOD'S GROUP LTD,467372,6300,792067900
BEIS,Met Office,2022-04-27,06 ACCOMMODATION,CHIEF FINANCIAL OFFICER,Exeter City Council,465746,140288,142335594
BEIS,Met Office,2022-04-27,11 SERVICES,PROGRAMMES,FUNDACAO ARTHUR BERNARDES - FUNARBE,467370,47296.04,-
BEIS,Met Office,2022-04-27,06 ACCOMMODATION,MARKETS,Hartlepool Borough Council,467482,50,259087918
BEIS,Met Office,2022-04-27,06 ACCOMMODATION,MARKETS,Hartlepool Borough Council,467482,35,259087918
BEIS,Met Office,2022-04-27,PAYE AND VAT,OTHER,HMRC,467485,7526525.12,-
BEIS,Met Office,2022-04-27,08 SOFTWARE LICENCES,TECHNOLOGY AND CIO,Ibm United Kingdom Ltd,467510,9765,107328000
BEIS,Met Office,2022-04-27,11 SERVICES,SCIENCE,NIWA,466567,70000,GST059456466
BEIS,Met Office,2022-04-27,10 EQUIPMENT MAINTENANCE,TECHNOLOGY AND CIO,ORACLE CORPORATION UK LTD,467511,19579.7,391313073
BEIS,Met Office,2022-04-27,11 SERVICES,PEOPLE,PLURALSIGHT,10597,1358.08,EU826020045
BEIS,Met Office,2022-04-27,07 EQUIPMENT,SCIENCE,POLYSCIENCES EUROPE GMBH,23654,37.49,-
BEIS,Met Office,2022-04-27,07 EQUIPMENT,SCIENCE,POLYSCIENCES EUROPE GMBH,23654,313.26,-
BEIS,Met Office,2022-04-27,11 SERVICES,MARKETS,Red Cross Red Crescent Climate Centre,23553,22000.7,N/A
BEIS,Met Office,2022-04-27,11 SERVICES,MARKETS,Red Cross Red Crescent Climate Centre,23553,24067.03,N/A
BEIS,Met Office,2022-04-27,06 ACCOMMODATION,CHIEF FINANCIAL OFFICER,SHETLAND CLEANING SERVICES,467483,739.97,430028404
BEIS,Met Office,2022-04-27,06 ACCOMMODATION,CHIEF FINANCIAL OFFICER,SHETLAND CLEANING SERVICES,467484,739.97,430028404
BEIS,Met Office,2022-04-27,11 SERVICES,CHIEF FINANCIAL OFFICER,SWISSCOM (SCHWEIZ) AG,467016,90.28,-
BEIS,Met Office,2022-04-27,11 SERVICES,MARKETS,SYNTAGMA TRANSLATIONS,466564,21.39,-
BEIS,Met Office,2022-04-28,11 SERVICES,SERVICES,APPLIED SATELLITE TECHNOLOGY SYSTEMS LTD,467384,65.2,720108683
BEIS,Met Office,2022-04-28,11 SERVICES,SERVICES,APPLIED SATELLITE TECHNOLOGY SYSTEMS LTD,467388,65.2,720108683
BEIS,Met Office,2022-04-28,11 SERVICES,SERVICES,APPLIED SATELLITE TECHNOLOGY SYSTEMS LTD,467389,32.6,720108683
BEIS,Met Office,2022-04-28,06 ACCOMMODATION,CHIEF FINANCIAL OFFICER,Biffa Waste Services Ltd,467057,-356.99,537911627
BEIS,Met Office,2022-04-28,13 MISCELLANEOUS,SERVICES,Biffa Waste Services Ltd,467420,385.43,537911627
BEIS,Met Office,2022-04-28,11 SERVICES,PROGRAMMES,BJSS LIMITED,467373,823,613295452
BEIS,Met Office,2022-04-28,PLANT AND EQUIPMENT,CHIEF FINANCIAL OFFICER,CBRE MANAGED SERVICES LTD,467461,159578.41,853936883
BEIS,Met Office,2022-04-28,06 ACCOMMODATION,CHIEF FINANCIAL OFFICER,CBRE MANAGED SERVICES LTD,467462,7144.46,853936883
BEIS,Met Office,2022-04-28,06 ACCOMMODATION,CHIEF FINANCIAL OFFICER,CBRE MANAGED SERVICES LTD,467464,149176.92,853936883
BEIS,Met Office,2022-04-28,06 ACCOMMODATION,CHIEF FINANCIAL OFFICER,CBRE MANAGED SERVICES LTD,467465,33286.36,853936883
BEIS,Met Office,2022-04-28,06 ACCOMMODATION,CHIEF FINANCIAL OFFICER,CBRE MANAGED SERVICES LTD,467466,49713.04,853936883
BEIS,Met Office,2022-04-28,06 ACCOMMODATION,CHIEF FINANCIAL OFFICER,CBRE MANAGED SERVICES LTD,467467,2726.35,853936883
BEIS,Met Office,2022-04-28,11 SERVICES,MARKETS,CULVERWELL ASSOCIATES LTD,467407,14250,386 6119 65
BEIS,Met Office,2022-04-28,11 SERVICES,CHIEF FINANCIAL OFFICER,DBS FINANCE RECEIPTS CTS,467358,195.12,888805068
BEIS,Met Office,2022-04-28,06 ACCOMMODATION,CHIEF FINANCIAL OFFICER,DBS FINANCE RECEIPTS CTS,467428,-195.12,888805068
BEIS,Met Office,2022-04-28,13 MISCELLANEOUS,PEOPLE,EVENBREAK,466730,8100,175722982
BEIS,Met Office,2022-04-28,11 SERVICES,CHIEF FINANCIAL OFFICER,LEASEDRIVE RENTAL MANAGEMENT LTD,467562,338.11,733546040
BEIS,Met Office,2022-04-28,04 CONTRACTORS,PEOPLE,MATRIX SCM LIMITED,467391,150668.97,249 5734 68
BEIS,Met Office,2022-04-28,06 ACCOMMODATION,CHIEF FINANCIAL OFFICER,NEVIS RANGE MOUNTAIN EXPERIENCE,467421,374.49,GB481585224
BEIS,Met Office,2022-04-28,06 ACCOMMODATION,CHIEF FINANCIAL OFFICER,Shetland Islands Council,467481,36281,267858304
BEIS,Met Office,2022-04-28,06 ACCOMMODATION,CHIEF FINANCIAL OFFICER,South West Water Ltd,467478,67.1,236873674
BEIS,Met Office,2022-04-28,11 SERVICES,PROGRAMMES,THE NATIONAL LOTTERY COMMUNITY FUND,466233,14260.08,899 3679 32
BEIS,Met Office,2022-04-29,06 ACCOMMODATION,CHIEF FINANCIAL OFFICER,BIDVEST NOONAN UK LTD,467556,0.01,GB847176988
BEIS,Met Office,2022-04-29,06 ACCOMMODATION,CHIEF FINANCIAL OFFICER,BIDVEST NOONAN UK LTD,467556,46.21,GB847176988
BEIS,Met Office,2022-04-29,06 ACCOMMODATION,CHIEF FINANCIAL OFFICER,BIDVEST NOONAN UK LTD,467557,92.43,GB847176988
BEIS,Met Office,2022-04-29,06 ACCOMMODATION,CHIEF FINANCIAL OFFICER,BIDVEST NOONAN UK LTD,467558,457.3,GB847176988
BEIS,Met Office,2022-04-29,06 ACCOMMODATION,CHIEF FINANCIAL OFFICER,BIDVEST NOONAN UK LTD,467558,0.01,GB847176988
BEIS,Met Office,2022-04-29,06 ACCOMMODATION,CHIEF FINANCIAL OFFICER,BIDVEST NOONAN UK LTD,467559,1013.83,GB847176988
BEIS,Met Office,2022-04-29,11 SERVICES,OFFICE OF THE CEO,BRYERS LLP,466998,215,609635917
BEIS,Met Office,2022-04-29,11 SERVICES,OFFICE OF THE CEO,BRYERS LLP,467509,-215,609635917
BEIS,Met Office,2022-04-29,11 SERVICES,OFFICE OF THE CEO,BRYERS LLP,467581,170,609635917
BEIS,Met Office,2022-04-29,10 EQUIPMENT MAINTENANCE,TECHNOLOGY AND CIO,COMPUTACENTER (UK) LTD,467576,40735,490334648
BEIS,Met Office,2022-04-29,11 SERVICES,MARKETS,DBS FINANCE RECEIPTS CTS,467572,12343.45,888805068
BEIS,Met Office,2022-04-29,11 SERVICES,PEOPLE,DECKHIVE LIMITED,467571,875,-
BEIS,Met Office,2022-04-29,06 ACCOMMODATION,CHIEF FINANCIAL OFFICER,EDF ENERGY CUSTOMERS PLC,467012,138618.75,523041202
BEIS,Met Office,2022-04-29,10 EQUIPMENT MAINTENANCE,TECHNOLOGY AND CIO,ORACLE CORPORATION UK LTD,467568,28257.75,391313073
BEIS,Met Office,2022-04-29,03 STAFF COSTS T&S,CHIEF FINANCIAL OFFICER,RAINBOW CITY TAXIS,464429,15,724295039
BEIS,Met Office,2022-04-29,03 STAFF COSTS T&S,CHIEF FINANCIAL OFFICER,RAINBOW CITY TAXIS,466492,14.87,724295039
BEIS,Met Office,2022-04-29,03 STAFF COSTS T&S,CHIEF FINANCIAL OFFICER,RAINBOW CITY TAXIS,467460,21.24,724295039
BEIS,Met Office,2022-04-29,06 ACCOMMODATION,CHIEF FINANCIAL OFFICER,Shetland Islands Council,467566,125,267858304
BEIS,Met Office,2022-04-29,11 SERVICES,MARKETS,Suffolk County Council,467390,957.11,104178791
BEIS,Met Office,2022-04-29,11 SERVICES,PEOPLE,TYNE VALLEY EXPRESS LTD,467236,360,395572256
BEIS,Met Office,2022-04-29,11 SERVICES,MARKETS,ULTRA ELECTRONICS LTD NUCLEAR CONTROL SYSTEMS,467564,232304.64,123340754
